fUSD/lending_fUSD_20260627
["ID","MTS","AMOUNT","RATE_DAILY","PERIOD"]
[426515905,1782510638000,-581.20752368,0.00034951,7]
[426516001,1782510639000,-233.94883478,0.00036256,8]
[426516009,1782510639000,-11270.71069844,0.00036362,2]
[426516015,1782510639000,-1096.43,0.00036408,30]
[426516007,1782510639000,-502.0,0.00036304,4]
[426516003,1782510639000,-233.94883478,0.00036256,8]
[426516005,1782510639000,-233.94883478,0.00036256,8]
[426515999,1782510639000,-233.94883484,0.00036256,8]
[426516041,1782510639000,-151.0,0.00036434,2]
[426516017,1782510639000,-679.74,0.00036408,30]
[426516027,1782510639000,-159.33,0.0003643,114]
[426516035,1782510639000,-151.0,0.00036434,2]
[426516023,1782510639000,-151.0,0.00036426,2]
[426516033,1782510639000,-151.0,0.00036434,2]
[426516037,1782510639000,-151.65,0.00036434,2]
[426516013,1782510639000,-327.21,0.00036408,2]
[426516025,1782510639000,-151.0,0.00036426,2]
[426516019,1782510639000,-624.96,0.00036408,30]
[426516012,1782510639000,-418.8,0.00036408,2]
[426515985,1782510639000,-33326.4581,0.00036026,2]
[426515995,1782510639000,-327.21,0.00036199,7]
[426516039,1782510639000,-197.21,0.00036434,2]
[426515964,1782510639000,-11270.71069844,0.00035656,2]
[426515965,1782510639000,-418.8,0.00035778,2]
[426515962,1782510639000,-502.0,0.00035621,3]
[426515967,1782510639000,-327.21,0.00035779,2]
[426515970,1782510639000,-152.04,0.00035879,30]
[426515971,1782510639000,-154.3,0.00035879,30]
[426515974,1782510639000,-11270.71069844,0.00035891,2]
[426515987,1782510639000,-11270.71069844,0.00036127,2]
[426515989,1782510639000,-152.06,0.00036138,2]
[426515979,1782510639000,-159.33,0.0003597,98]
[426515975,1782510639000,-165.88439529,0.000359,120]
[426515977,1782510639000,-100000.0,0.00035969,90]
[426515981,1782510639000,-418.8,0.00035988,30]
[426515983,1782510639000,-327.21,0.00035989,30]
[426515991,1782510639000,-154.32,0.00036138,2]
[426515993,1782510639000,-418.8,0.00036198,7]
[426515997,1782510639000,-2000.0,0.000362,7]
[426516029,1782510639000,-151.0,0.00036434,2]
[426516021,1782510639000,-1127.67,0.00036408,30]
[426516045,1782510639000,-246.01,0.00036434,2]
[426516086,1782510639000,-11270.71069844,0.00036833,2]
[426516090,1782510639000,-233.94883478,0.00036896,9]
[426516092,1782510639000,-159.33,0.000369,120]
[426516094,1782510639000,-245.9716358,0.00036907,2]
[426516102,1782510639000,-231.43915258,0.00037,2]
[426516100,1782510639000,-212.75293918,0.00037,2]
[426516106,1782510639000,-327.21,0.00037038,2]
[426516088,1782510639000,-700.0,0.00036861,2]
[426516096,1782510639000,-502.0,0.00036987,5]
[426516108,1782510639000,-231.43915256,0.00037058,2]
[426516110,1782510639000,-11270.71069844,0.00037068,2]
[426516112,1782510639000,-195.71037861,0.0003709,2]
[426516116,1782510639000,-379050.94980155,0.000371,120]
[426516121,1782510639000,-3461.25219006,0.000371,120]
[426516119,1782510639000,-36827.14295109,0.000371,120]
[426516113,1782510639000,-56503.22810286,0.000371,24]
[426516104,1782510639000,-418.8,0.00037038,2]
[426516078,1782510639000,-418.8,0.00036828,7]
[426516098,1782510639000,-165.88439529,0.00037,120]
[426516074,1782510639000,-170.0,0.00036809,7]
[426516047,1782510639000,-151.0,0.00036434,2]
[426516076,1782510639000,-238.0,0.00036809,7]
[426516049,1782510639000,-151.0,0.00036434,2]
[426516052,1782510639000,-151.0,0.00036434,2]
[426516058,1782510639000,-151.0,0.00036434,2]
[426516059,1782510639000,-151.0,0.00036434,2]
[426516054,1782510639000,-151.17,0.00036434,2]
[426516056,1782510639000,-573.75,0.00036434,2]
[426516060,1782510639000,-151.0,0.00036434,2]
[426516043,1782510639000,-151.0,0.00036434,2]
[426516061,1782510639000,-233.94883478,0.00036507,8]
[426516063,1782510639000,-150.0,0.00036511,2]
[426516080,1782510639000,-327.21,0.00036828,7]
[426516072,1782510639000,-327.21,0.00036618,30]
[426516070,1782510639000,-418.8,0.00036618,30]
[426516031,1782510639000,-151.0,0.00036434,2]
[426516067,1782510639000,-1500.0,0.00036548,10]
[426516065,1782510639000,-225.0,0.00036516,120]
[426516069,1782510639000,-11270.71069844,0.00036597,2]
[426516243,1782510640000,-60967.89027464,0.000371,120]
[426516191,1782510640000,-3000.0,0.000371,120]
[426516318,1782510643000,-4471.25979456,0.0003709,10]
[426516317,1782510643000,-167.25804105,0.0003709,10]
[426516319,1782510643000,-3049.05329665,0.0003709,10]
[426516320,1782510643000,-32.77980934,0.0003709,10]
[426516328,1782510646000,-4997.4590584,0.0003709,10]
[426516330,1782510646000,-1574.89999999,0.000371,120]
[426516329,1782510646000,-16961.63524155,0.000371,120]
[426516338,1782510966000,-221.0,0.00014279,2]
[426516337,1782510966000,-150.0,0.00014175,2]
[426516334,1782510966000,-150.968158,0.00014,2]
[426516335,1782510966000,-160.78665199,0.00014,7]
[426516336,1782510966000,-150.0,0.00014139,2]
[426516333,1782510966000,-603.912629,0.00014,2]
[426516339,1782510977000,188.710196,0.00014,2]
[426516342,1782511169000,180.0,0.00028174,120]
[426516345,1782511315000,500.0,0.00030099,120]
[426516346,1782511315000,500.0,0.00030099,120]
[426516347,1782511410000,500.0,0.00030099,120]
[426516348,1782511432000,500.0,0.00030099,120]
[426516349,1782511508000,500.0,0.00030099,120]
[426516356,1782511539000,167.01,0.00028705,120]
[426516358,1782511626000,250.0,0.00014,2]
[426516366,1782511749000,-200.0,0.00014921,2]
[426516368,1782511749000,-600.0,0.00014934,2]
[426516369,1782511749000,-300.0,0.00014947,2]
[426516370,1782511749000,-4023.13896338,0.00015,2]
[426516367,1782511749000,-261.22672262,0.00014921,2]
[426516407,1782511832000,-1100.0,0.00021756,2]
[426516402,1782511832000,-2589.04947439,0.000165,2]
[426516401,1782511832000,-2500.0,0.000165,2]
[426516397,1782511832000,-300.0,0.00016442,2]
[426516405,1782511832000,-202.62529744,0.000214,2]
[426516404,1782511832000,-339.81595288,0.00020012,2]
[426516417,1782511832000,-2475.57,0.00024174,2]
[426516409,1782511832000,-150.99,0.00021757,2]
[426516414,1782511832000,-150.0,0.00024092,2]
[426516408,1782511832000,-9999.99,0.00021757,2]
[426516416,1782511832000,-414.41,0.00024174,2]
[426516412,1782511832000,-474.0,0.00022648,2]
[426516415,1782511832000,-207.2,0.00024174,2]
[426516395,1782511832000,-600.0,0.00016413,2]
[426516411,1782511832000,-4717.95,0.00021757,2]
[426516410,1782511832000,-299.99,0.00021757,7]
[426516418,1782511832000,-6390.18,0.00024174,2]
[426516420,1782511832000,-500.0,0.0002428,2]
[426516406,1782511832000,-202.62529744,0.000216,2]
[426516400,1782511832000,-2500.0,0.000165,2]
[426516389,1782511832000,-300.0,0.00016383,2]
[426516398,1782511832000,-332.87186526,0.00016442,2]
[426516430,1782511832000,-177.22907949,0.00025999,2]
[426516374,1782511832000,-381.23189536,0.00015,2]
[426516375,1782511832000,-1160.88,0.00015,2]
[426516376,1782511832000,-3209.82391698,0.00015,2]
[426516388,1782511832000,-160.0,0.00015978,2]
[426516378,1782511832000,-600.0,0.00015091,2]
[426516377,1782511832000,-14909.24901026,0.00015,2]
[426516386,1782511832000,-300.0,0.00015436,2]
[426516379,1782511832000,-600.0,0.00015091,2]
[426516381,1782511832000,-200.0,0.00015149,2]
[426516380,1782511832000,-600.0,0.00015091,2]
[426516383,1782511832000,-200.0,0.00015149,2]
[426516382,1782511832000,-200.0,0.00015149,2]
[426516385,1782511832000,-300.0,0.00015436,2]
[426516384,1782511832000,-300.0,0.00015436,2]
[426516387,1782511832000,-216.42324807,0.00015978,2]
[426516390,1782511832000,-200.0,0.00016383,2]
[426516393,1782511832000,-256.10668052,0.00016413,2]
[426516391,1782511832000,-250.0,0.00016383,2]
[426516403,1782511832000,-151.8,0.00016712,2]
[426516419,1782511832000,-164.17,0.00024174,2]
[426516413,1782511832000,-1030.19,0.00024092,2]
[426516423,1782511832000,-151.96,0.00024658,2]
[426516448,1782511832000,-500.0,0.00030097,2]
[426516445,1782511832000,-166.56,0.00030091,2]
[426516447,1782511832000,-500.0,0.00030097,2]
[426516454,1782511832000,-500.0,0.00030097,2]
[426516450,1782511832000,-500.0,0.00030097,2]
[426516451,1782511832000,-500.0,0.00030097,2]
[426516449,1782511832000,-500.0,0.00030097,2]
[426516452,1782511832000,-489.31685868,0.00030097,2]
[426516455,1782511832000,-500.0,0.00030097,2]
[426516453,1782511832000,-500.0,0.00030097,2]
[426516457,1782511832000,-500.0,0.00030097,2]
[426516459,1782511832000,-500.0,0.00030097,2]
[426516458,1782511832000,-500.0,0.00030097,2]
[426516460,1782511832000,-500.0,0.00030097,2]
[426516461,1782511832000,-500.0,0.00030097,2]
[426516462,1782511832000,-500.0,0.00030097,2]
[426516465,1782511832000,-500.0,0.00030097,2]
[426516463,1782511832000,-500.0,0.00030097,2]
[426516464,1782511832000,-500.0,0.00030097,2]
[426516456,1782511832000,-500.0,0.00030097,2]
[426516446,1782511832000,-500.0,0.00030097,2]
[426516421,1782511832000,-160.92,0.00024428,2]
[426516437,1782511832000,-500.0,0.000275,7]
[426516422,1782511832000,-167.01,0.00024604,2]
[426516424,1782511832000,-154.08,0.00024658,2]
[426516427,1782511832000,-400.63,0.00025161,2]
[426516466,1782511832000,-500.0,0.00030097,2]
[426516429,1782511832000,-166.56,0.00025828,2]
[426516428,1782511832000,-66764.54743822,0.000258,2]
[426516425,1782511832000,-200.0,0.00024852,2]
[426516426,1782511832000,-500.0,0.00025084,2]
[426516431,1782511832000,-166.0,0.00026049,5]
[426516443,1782511832000,-587.46,0.0002999,3]
[426516444,1782511832000,-17039.87448892,0.0003,2]
[426516435,1782511832000,-356.83598815,0.00027397,10]
[426516432,1782511832000,-381.0,0.000272,15]
[426516434,1782511832000,-8474.98401185,0.00027397,10]
[426516438,1782511832000,-151.96,0.00027796,7]
[426516442,1782511832000,-167.51571557,0.00029005,2]
[426516436,1782511832000,-167.51571558,0.000274,2]
[426516441,1782511832000,-1337.95962158,0.00028,8]
[426516439,1782511832000,-154.08,0.00027796,7]
[426516440,1782511832000,-200.0,0.00027806,2]
[426516433,1782511832000,-10598.18,0.00027397,10]
[426516480,1782511833000,-500.0,0.00030097,2]
[426516477,1782511833000,-500.0,0.00030097,2]
[426516478,1782511833000,-500.0,0.00030097,2]
[426516481,1782511833000,-500.0,0.00030097,2]
[426516490,1782511833000,-500.0,0.00030097,2]
[426516493,1782511833000,-500.0,0.00030097,2]
[426516495,1782511833000,-500.0,0.00030097,2]
[426516488,1782511833000,-500.0,0.00030097,2]
[426516482,1782511833000,-500.0,0.00030097,2]
[426516476,1782511833000,-500.0,0.00030097,2]
[426516475,1782511833000,-500.0,0.00030097,2]
[426516474,1782511833000,-500.0,0.00030097,2]
[426516484,1782511833000,-500.0,0.00030097,2]
[426516492,1782511833000,-500.0,0.00030097,2]
[426516473,1782511833000,-500.0,0.00030097,2]
[426516483,1782511833000,-500.0,0.00030097,2]
[426516471,1782511833000,-500.0,0.00030097,2]
[426516467,1782511833000,-500.0,0.00030097,2]
[426516468,1782511833000,-500.0,0.00030097,2]
[426516469,1782511833000,-500.0,0.00030097,2]
[426516470,1782511833000,-500.0,0.00030097,2]
[426516479,1782511833000,-500.0,0.00030097,2]
[426516489,1782511833000,-500.0,0.00030097,2]
[426516472,1782511833000,-500.0,0.00030097,2]
[426516491,1782511833000,-500.0,0.00030097,2]
[426516486,1782511833000,-227.47450104,0.00030097,2]
[426516516,1782511833000,-13848.05573036,0.000301,7]
[426516512,1782511833000,-500.15352222,0.00030099,2]
[426516514,1782511833000,-6307.95661447,0.000301,7]
[426516515,1782511833000,-1254.41808677,0.000301,7]
[426516513,1782511833000,-500.0,0.00030099,7]
[426516510,1782511833000,-503.76582778,0.00030099,2]
[426516511,1782511833000,-500.0,0.00030099,2]
[426516509,1782511833000,-500.0,0.00030099,2]
[426516502,1782511833000,-500.0,0.00030097,2]
[426516505,1782511833000,-500.0,0.00030099,2]
[426516503,1782511833000,-500.0,0.00030097,2]
[426516485,1782511833000,-301.06934148,0.00030097,2]
[426516504,1782511833000,-500.0,0.00030097,2]
[426516506,1782511833000,-306.98526959,0.00030099,2]
[426516507,1782511833000,-218.54059942,0.00030099,2]
[426516500,1782511833000,-500.0,0.00030097,2]
[426516501,1782511833000,-500.0,0.00030097,2]
[426516508,1782511833000,-406.84526658,0.00030099,2]
[426516499,1782511833000,-500.0,0.00030097,2]
[426516498,1782511833000,-500.0,0.00030097,2]
[426516497,1782511833000,-500.0,0.00030097,2]
[426516496,1782511833000,-500.0,0.00030097,2]
[426516494,1782511833000,-300.0,0.00030097,2]
[426516487,1782511833000,-272.52549896,0.00030097,2]
[426516526,1782511838000,-154.0,0.00024658,2]
[426516527,1782511838000,-396.0,0.0003009,10]
[426516528,1782511838000,-6963.85,0.0003009,10]
[426516530,1782511838000,-5644.37444466,0.000301,7]
[426516531,1782511838000,-641.02529285,0.000301,7]
[426516532,1782511838000,-582.14538574,0.000301,7]
[426516533,1782511838000,-315.0,0.000301,7]
[426516529,1782511838000,-137218.36966736,0.000301,7]
[426516626,1782511840000,-702.73525004,0.000301,7]
[426516625,1782511840000,-4998.96332019,0.000301,7]
[426516628,1782511840000,-1472.66051192,0.000301,7]
[426516627,1782511840000,-2691.88222366,0.000301,7]
[426516638,1782511843000,-944.61553691,0.000301,7]
[426516639,1782511843000,-1105.799808,0.000301,7]
[426516637,1782511843000,-19618.77052784,0.000301,7]
[426516635,1782511843000,-12604.25423854,0.000301,7]
[426516636,1782511843000,-765.98205054,0.000301,7]
[426516634,1782511843000,-478.41803999,0.000301,7]
[426516644,1782511846000,-1201.64,0.0003009,10]
[426516645,1782511846000,-4931.56,0.0003009,10]
[426516648,1782511846000,-3149.19999994,0.000301,7]
[426516647,1782511846000,-81584.04644867,0.000301,7]
[426516646,1782511846000,-220391.33260837,0.000301,7]
[426516650,1782511862000,300.0,0.00030045,120]
[426516651,1782511988000,187.85,0.0002966,120]
[426516654,1782512214000,500.0,0.00030099,120]
[426516655,1782512311000,500.0,0.00030099,120]
[426516656,1782512332000,501.62260177,0.00030099,120]
[426516657,1782512334000,500.0,0.00030099,120]
[426516660,1782512509000,181.75,0.00028838,120]
[426516661,1782512510000,500.0,0.00030099,120]
[426516662,1782512554000,296.41,0.00028887,120]
[426516663,1782512739000,500.0,0.00030136,120]
[426516665,1782512774000,500.0,0.00037252,120]
[426516664,1782512774000,500.0,0.00037252,120]
[426516666,1782512775000,379.07699284,0.00037252,120]
[426516667,1782512785000,500.0,0.00030099,120]
[426516670,1782512945000,5000.0,0.00037252,120]
[426516671,1782512955000,180.0,0.00028513,120]
[426516701,1782513032000,-166.66,0.00028409,30]
[426516702,1782513032000,-150.0,0.00028462,2]
[426516695,1782513032000,-1037.13883846,0.000275,2]
[426516697,1782513032000,-166.66,0.00027835,30]
[426516703,1782513032000,-204.91,0.00028504,2]
[426516699,1782513032000,-207.2,0.00028364,7]
[426516706,1782513032000,-150.0,0.00028868,2]
[426516700,1782513032000,-414.41,0.00028364,7]
[426516704,1782513032000,-200.0,0.00028546,2]
[426516708,1782513032000,-304.228069,0.00028868,2]
[426516698,1782513032000,-2475.57,0.00028364,7]
[426516709,1782513032000,-988.50962012,0.00028868,2]
[426516710,1782513032000,-1310.43738089,0.00028887,2]
[426516713,1782513032000,-1123.51,0.00028972,2]
[426516714,1782513032000,-153.14884205,0.00028972,60]
[426516716,1782513032000,-163.08,0.00029186,2]
[426516715,1782513032000,-166.66,0.00028983,30]
[426516717,1782513032000,-158.42,0.00029312,2]
[426516718,1782513032000,-166.66,0.00029557,30]
[426516705,1782513032000,-537.28,0.00028728,2]
[426516696,1782513032000,-150.99,0.000275,2]
[426516690,1782513032000,-54.24793713,0.000275,7]
[426516712,1782513032000,-3689.56261911,0.00028887,2]
[426516674,1782513032000,-229.81355034,0.00015188,2]
[426516673,1782513032000,-160.78665199,0.00015,7]
[426516675,1782513032000,-300.0,0.000165,2]
[426516678,1782513032000,-160.7259826,0.000165,2]
[426516680,1782513032000,-179.27067932,0.00017498,2]
[426516679,1782513032000,-250.0,0.000165,2]
[426516683,1782513032000,-175.39,0.00024658,2]
[426516684,1782513032000,-306.29768411,0.00024809,2]
[426516685,1782513032000,-153.14884205,0.00024809,2]
[426516694,1782513032000,-2539.32212326,0.000275,2]
[426516676,1782513032000,-722.91243226,0.000165,2]
[426516682,1782513032000,-175.34,0.00024658,2]
[426516681,1782513032000,-1154.33,0.000215,2]
[426516687,1782513032000,-166.66,0.00027261,30]
[426516688,1782513032000,-179.91912781,0.000275,7]
[426516693,1782513032000,-829.63571853,0.000275,2]
[426516686,1782513032000,-306.29768411,0.0002689,14]
[426516689,1782513032000,-265.83293506,0.000275,7]
[426516691,1782513032000,-622.71800327,0.000275,2]
[426516692,1782513032000,-4971.17531648,0.000275,2]
[426516677,1782513032000,-39.2740174,0.000165,2]
[426516720,1782513032000,-291.0,0.00029557,2]
[426516707,1782513032000,-397.40231088,0.00028868,2]
[426516724,1782513032000,-160.0,0.00029892,2]
[426516760,1782513032000,-17950.2849756,0.00030098,2]
[426516764,1782513032000,-500.0,0.00030099,10]
[426516774,1782513032000,-500.0,0.00030099,2]
[426516775,1782513032000,-410.10693415,0.00030099,2]
[426516763,1782513032000,-500.0,0.00030099,7]
[426516765,1782513032000,-165.47965097,0.00030099,2]
[426516771,1782513032000,-500.0,0.00030099,2]
[426516772,1782513032000,-500.0,0.00030099,2]
[426516773,1782513032000,-500.0,0.00030099,2]
[426516767,1782513032000,-500.0,0.00030099,2]
[426516770,1782513032000,-500.0,0.00030099,2]
[426516768,1782513032000,-263.00855802,0.00030099,2]
[426516722,1782513032000,-216.42324807,0.00029892,2]
[426516766,1782513032000,-214.88968871,0.00030099,2]
[426516779,1782513032000,-500.0,0.00030099,2]
[426516780,1782513032000,-500.0,0.00030099,2]
[426516781,1782513032000,-245.4131383,0.00030099,2]
[426516778,1782513032000,-284.79168661,0.00030099,2]
[426516777,1782513032000,-152.97841959,0.00030099,2]
[426516762,1782513032000,-245.9716358,0.00030098,2]
[426516757,1782513032000,-1096.43,0.00030097,7]
[426516769,1782513032000,-500.0,0.00030099,2]
[426516761,1782513032000,-764.8265977,0.00030098,2]
[426516758,1782513032000,-624.96,0.00030097,7]
[426516739,1782513032000,-681.0,0.00030001,5]
[426516737,1782513032000,-686.0,0.0003,5]
[426516743,1782513032000,-662.0,0.00030026,5]
[426516735,1782513032000,-2150.76073991,0.0003,2]
[426516733,1782513032000,-683.02473341,0.0003,2]
[426516727,1782513032000,-178.25748836,0.0003,2]
[426516731,1782513032000,-15857.49640796,0.0003,2]
[426516725,1782513032000,-151.0,0.0003,2]
[426516729,1782513032000,-679.0,0.0003,5]
[426516776,1782513032000,-323.3452149,0.00030099,2]
[426516745,1782513032000,-195.82,0.0003009,3]
[426516749,1782513032000,-2464.8,0.0003009,10]
[426516747,1782513032000,-587.46,0.0003009,3]
[426516752,1782513032000,-3916.84,0.0003009,10]
[426516741,1782513032000,-675.0,0.00030004,5]
[426516753,1782513032000,-3264.03,0.0003009,10]
[426516755,1782513032000,-151.0,0.00030097,7]
[426516756,1782513032000,-679.74,0.00030097,7]
[426516754,1782513032000,-151.0,0.00030097,7]
[426516751,1782513032000,-4700.2,0.0003009,10]
[426516759,1782513032000,-1127.67,0.00030097,7]
[426516782,1782513033000,-500.0,0.00030099,2]
[426516784,1782513033000,-500.0,0.00030099,7]
[426516787,1782513033000,-11966.8763141,0.000301,7]
[426516783,1782513033000,-545.97305866,0.00030099,7]
[426516786,1782513033000,-46441.84163143,0.000301,7]
[426516785,1782513033000,-500.0,0.00030099,7]
[426516792,1782513038000,-6390.18,0.00028364,7]
[426516791,1782513038000,-175.43,0.00024658,2]
[426516793,1782513038000,-6497.68095622,0.000301,7]
[426516795,1782513038000,-497.30227216,0.000301,7]
[426516798,1782513038000,-5665.3075951,0.000301,7]
[426516797,1782513038000,-2150.29444335,0.000301,7]
[426516796,1782513038000,-1046.26,0.000301,7]
[426516794,1782513038000,-2386.95222144,0.000301,7]
[426516844,1782513040000,-434.13896745,0.000301,7]
[426516839,1782513040000,-951.400309,0.000301,7]
[426516840,1782513040000,-3150.80815502,0.000301,7]
[426516843,1782513040000,-257803.35866818,0.000301,7]
[426516848,1782513040000,-600.0,0.000301,7]
[426516845,1782513040000,-484.08846829,0.000301,7]
[426516847,1782513040000,-1849.7217823,0.000301,7]
[426516849,1782513040000,-2662.75311705,0.000301,7]
[426516850,1782513040000,-2011.96462247,0.000301,7]
[426516846,1782513040000,-322.52655475,0.000301,7]
[426516852,1782513041000,-1177.83885115,0.000301,7]
[426516851,1782513041000,-2491.33767473,0.000301,7]
[426516857,1782513043000,-164.17,0.00028364,7]
[426516858,1782513043000,-1040.20180863,0.000301,7]
[426516859,1782513043000,-938.50190951,0.000301,7]
[426516860,1782513044000,-162.41702137,0.000301,7]
[426516863,1782513047000,-739.52027986,0.000301,7]
[426516862,1782513047000,-8347.82762451,0.000301,7]
[426516864,1782513047000,-9541.2938,0.000301,7]
[426516869,1782513316000,500.0,0.00030099,120]
[426516870,1782513382000,390.06905364,0.00037252,120]
[426516872,1782513720000,291.92,0.00031501,120]
[426516873,1782514044000,181.75,0.00031498,120]
[426516874,1782514160000,-151.0,0.00017598,2]
[426516875,1782514160000,-151.0,0.00017598,2]
[426516877,1782514160000,-151.0,0.00017598,2]
[426516879,1782514160000,-200.0,0.00022836,2]
[426516878,1782514160000,-405.4347,0.000189,2]
[426516882,1782514160000,-455.85,0.00024174,2]
[426516880,1782514160000,-200.0,0.00022836,7]
[426516876,1782514160000,-151.0,0.00017598,2]
[426516884,1782514160000,-151.1,0.00024658,2]
[426516883,1782514160000,-157.13,0.00024658,2]
[426516885,1782514160000,-151.1,0.00025917,7]
[426516886,1782514160000,-155.0,0.00026079,5]
[426516887,1782514160000,-157.13,0.00026232,7]
[426516888,1782514160000,-151.1,0.00027177,30]
[426516881,1782514160000,-150.0,0.00023128,2]
[426516889,1782514160000,-386.68349737,0.000275,7]
[426516890,1782514199000,1500000.0,0.0003,120]
[426516907,1782514231000,-165.81373285,0.0002995,2]
[426516909,1782514231000,-107.00739279,0.00029989,2]
[426516911,1782514231000,-3010.45914051,0.00029996,2]
[426516913,1782514231000,-200.23580526,0.0003,5]
[426516912,1782514231000,-6486.63977788,0.00029996,2]
[426516917,1782514231000,-203.95739818,0.00030001,5]
[426516914,1782514231000,-477.76419474,0.0003,5]
[426516918,1782514231000,-309.63281891,0.00030005,5]
[426516919,1782514231000,-354.36718109,0.00030005,5]
[426516920,1782514231000,-663.0,0.00030034,5]
[426516910,1782514231000,-502.89108161,0.00029996,2]
[426516915,1782514231000,-666.0,0.0003,5]
[426516908,1782514231000,-52.99260721,0.00029989,2]
[426516893,1782514231000,-152.67,0.00025917,7]
[426516902,1782514231000,-216.19785429,0.00028595,3]
[426516906,1782514231000,-1224.7355066,0.00029947,2]
[426516905,1782514231000,-241.52313262,0.00029459,2]
[426516904,1782514231000,-135.19502072,0.00029,2]
[426516901,1782514231000,-152.0,0.00028595,3]
[426516896,1782514231000,-152.67,0.00028437,2]
[426516899,1782514231000,-152.0,0.00028595,3]
[426516898,1782514231000,-152.0,0.00028595,3]
[426516897,1782514231000,-152.0,0.00028595,3]
[426516900,1782514231000,-152.0,0.00028595,3]
[426516931,1782514231000,-200.0,0.000301,2]
[426516895,1782514231000,-113.31650263,0.000275,7]
[426516892,1782514231000,-152.67,0.00024658,2]
[426516894,1782514231000,-152.67,0.00027177,30]
[426516903,1782514231000,-81.22822735,0.00029,2]
[426516935,1782514231000,-740.15,0.000301,7]
[426516916,1782514231000,-472.04260182,0.00030001,5]
[426516937,1782514231000,-662.0,0.000301,5]
[426516933,1782514231000,-719.65,0.000301,7]
[426516963,1782514231000,-200.0,0.00031322,2]
[426516962,1782514231000,-500.0,0.00031322,2]
[426516964,1782514231000,-1320.19499848,0.0003143,4]
[426516965,1782514231000,-183.15,0.00031529,120]
[426516961,1782514231000,-2000.0,0.000313,2]
[426516959,1782514231000,-200.0,0.00031012,2]
[426516958,1782514231000,-717.95,0.00031003,7]
[426516960,1782514231000,-338.79658518,0.00031256,2]
[426516950,1782514231000,-3559.71404432,0.00030493,2]
[426516947,1782514231000,-200.0,0.00030401,2]
[426516953,1782514231000,-200.0,0.00030705,2]
[426516951,1782514231000,-2150.601,0.0003055,26]
[426516949,1782514231000,-163.44113908,0.00030401,2]
[426516952,1782514231000,-1283.19231204,0.00030628,3]
[426516948,1782514231000,-163.44113908,0.00030401,2]
[426516924,1782514231000,-342.36718109,0.00030069,2]
[426516922,1782514231000,-157.63281891,0.00030069,2]
[426516954,1782514231000,-151.0,0.00030788,7]
[426516938,1782514231000,-150.0,0.000301,5]
[426516927,1782514231000,-150.0,0.00030099,2]
[426516929,1782514231000,-56498.54312429,0.000301,7]
[426516942,1782514231000,-685.0,0.000301,5]
[426516941,1782514231000,-673.0,0.000301,5]
[426516946,1782514231000,-166.66,0.00030211,30]
[426516956,1782514231000,-1000.0,0.00031,7]
[426516945,1782514231000,-1062.46527288,0.00030126,7]
[426516957,1782514231000,-698.06,0.00031003,7]
[426516955,1782514231000,-2256.82037842,0.0003088,2]
[426516944,1782514231000,-679.0,0.000301,5]
[426516971,1782514232000,-676.48,0.00031906,7]
[426516970,1782514232000,-1698.0,0.00031848,20]
[426516966,1782514232000,-2352.54,0.00031578,2]
[426516969,1782514232000,-166.66,0.00031801,30]